[Event "*** Titled Tuesday 3|2 Blitz"]
[Site "Chess.com"]
[Date "2016.06.07"]
[Round "5"]
[White "ChessWarrior7197"]
[Black "kpio91"]
[Result "0-1"]
[WhiteElo "2515"]
[BlackElo "2527"]
[TimeControl "180+2"]
[EndTime "12:01:58 PDT"]
[Termination "kpio91 won by resignation"]

1. d4 {[%clk 0:03:01.9]} 1... g6 {[%clk 0:02:59.7]} 2. Bf4 {[%clk 0:03:01.6]}
2... Bg7 {[%clk 0:03:00.1]} 3. Nf3 {[%clk 0:03:02.3]} 3... Nf6 {[%clk 0:03:01]}
4. e3 {[%clk 0:03:02.4]} 4... O-O {[%clk 0:03:02.5]} 5. h3 {[%clk 0:03:03.7]}
5... d6 {[%clk 0:03:03.1]} 6. Be2 {[%clk 0:03:02]} 6... b6 {[%clk 0:02:58.4]} 7.
O-O {[%clk 0:03:02.1]} 7... c5 {[%clk 0:02:59.4]} 8. c3 {[%clk 0:02:59.5]} 8...
Bb7 {[%clk 0:02:58.1]} 9. a4 {[%clk 0:03:00.2]} 9... a6 {[%clk 0:02:57.7]} 10.
Nbd2 {[%clk 0:03:00.4]} 10... Nbd7 {[%clk 0:02:58.6]} 11. Re1 {[%clk 0:02:57.1]}
11... Rc8 {[%clk 0:02:58.4]} 12. Bh2 {[%clk 0:02:57.6]} 12... Rc7 {[%clk
0:02:59.2]} 13. Qb3 {[%clk 0:02:57.4]} 13... Qa8 {[%clk 0:02:59.2]} 14. Bd3
{[%clk 0:02:53.5]} 14... Ne4 {[%clk 0:02:43.6]} 15. Nxe4 {[%clk 0:02:49.5]}
15... Bxe4 {[%clk 0:02:44.4]} 16. Bxe4 {[%clk 0:02:50]} 16... Qxe4 {[%clk
0:02:45.1]} 17. Nd2 {[%clk 0:02:48]} 17... Qc6 {[%clk 0:02:27.3]} 18. Bg3 {[%clk
0:02:36]} 18... Rb8 {[%clk 0:02:22.2]} 19. Qd1 {[%clk 0:02:35.1]} 19... b5
{[%clk 0:02:17.2]} 20. axb5 {[%clk 0:02:35.7]} 20... axb5 {[%clk 0:02:08.1]} 21.
Qf3 {[%clk 0:02:36.4]} 21... Qxf3 {[%clk 0:02:01.1]} 22. Nxf3 {[%clk 0:02:37]}
22... h6 {[%clk 0:01:54.2]} 23. Nd2 {[%clk 0:02:35]} 23... b4 {[%clk 0:01:52.5]}
24. Ra2 {[%clk 0:02:27.6]} 24... cxd4 {[%clk 0:01:46.3]} 25. cxd4 {[%clk
0:02:26.5]} 25... Rc2 {[%clk 0:01:46.9]} 26. Nb3 {[%clk 0:02:25.3]} 26... Nb6
{[%clk 0:01:41.3]} 27. Rc1 {[%clk 0:02:09.7]} 27... Rbc8 {[%clk 0:01:32.1]} 28.
Rb1 {[%clk 0:01:51]} 28... e5 {[%clk 0:01:06.2]} 29. dxe5 {[%clk 0:01:49.4]}
29... dxe5 {[%clk 0:01:07.3]} 30. Ra6 {[%clk 0:01:44.7]} 30... Nc4 {[%clk
0:01:05.9]} 31. Ra4 {[%clk 0:01:45.4]} 31... Rb8 {[%clk 0:01:04.8]} 32. Ra2
{[%clk 0:01:31.5]} 32... Rd8 {[%clk 0:00:58.6]} 33. Kh2 {[%clk 0:01:11.2]} 33...
e4 {[%clk 0:00:51.7]} 34. Nd4 {[%clk 0:01:02.6]} 34... Bxd4 {[%clk 0:00:48]} 35.
exd4 {[%clk 0:01:04.2]} 35... b3 {[%clk 0:00:49.6]} 36. Ra4 {[%clk 0:00:59.1]}
36... Rxd4 {[%clk 0:00:41.7]} 37. Be5 {[%clk 0:00:56.6]} 37... Rd8 {[%clk
0:00:42.2]} 38. Bc3 {[%clk 0:00:52.3]} 38... Nd2 {[%clk 0:00:34.7]} 39. Rd1
{[%clk 0:00:49.9]} 39... Rxc3 {[%clk 0:00:29.9]} 40. bxc3 {[%clk 0:00:49.6]}
40... Nf3+ {[%clk 0:00:31.5]} 41. gxf3 {[%clk 0:00:48.6]} 41... Rxd1 {[%clk
0:00:32.3]} 42. fxe4 {[%clk 0:00:48.2]} 42... b2 {[%clk 0:00:32.9]} 0-1

[Event "*** Titled Tuesday 3|2 Blitz"]
[Site "Chess.com"]
[Date "2016.06.07"]
[Round "5"]
[White "KamilPlichta"]
[Black "TomsKantans"]
[Result "1-0"]
[WhiteElo "2370"]
[BlackElo "2445"]
[TimeControl "180+2"]
[EndTime "12:02:34 PDT"]
[Termination "KamilPlichta won by resignation"]

1. c4 {[%clk 0:03:01.9]} 1... e5 {[%clk 0:02:57.9]} 2. g3 {[%clk 0:03:03.1]}
2... Nc6 {[%clk 0:02:58.2]} 3. Bg2 {[%clk 0:03:03.8]} 3... Bc5 {[%clk
0:02:59.8]} 4. Nc3 {[%clk 0:03:04.1]} 4... d6 {[%clk 0:03:00.2]} 5. e3 {[%clk
0:03:03.9]} 5... a6 {[%clk 0:03:01.5]} 6. Nge2 {[%clk 0:03:05.2]} 6... Ba7
{[%clk 0:03:01.7]} 7. a3 {[%clk 0:03:05.9]} 7... h5 {[%clk 0:03:00.4]} 8. h3
{[%clk 0:03:03]} 8... h4 {[%clk 0:02:56.7]} 9. g4 {[%clk 0:03:04.3]} 9... f5
{[%clk 0:02:57.2]} 10. gxf5 {[%clk 0:03:04.5]} 10... Bxf5 {[%clk 0:02:58.7]} 11.
Nd5 {[%clk 0:03:04.6]} 11... Qd7 {[%clk 0:02:51.6]} 12. d3 {[%clk 0:03:01.8]}
12... Nf6 {[%clk 0:02:44.5]} 13. b4 {[%clk 0:03:02.7]} 13... O-O-O {[%clk
0:02:36.9]} 14. b5 {[%clk 0:02:53.1]} 14... axb5 {[%clk 0:02:33.6]} 15. cxb5
{[%clk 0:02:54.3]} 15... Ne7 {[%clk 0:02:29.7]} 16. b6 {[%clk 0:02:53.5]} 16...
cxb6 {[%clk 0:02:25.5]} 17. Nxe7+ {[%clk 0:02:51.3]} 17... Qxe7 {[%clk
0:02:26.2]} 18. Nc3 {[%clk 0:02:50]} 18... Bd7 {[%clk 0:02:13.2]} 19. Rb1 {[%clk
0:02:45.9]} 19... Bc6 {[%clk 0:02:12.3]} 20. Be4 {[%clk 0:02:34.6]} 20... d5
{[%clk 0:02:07.8]} 21. Bf5+ {[%clk 0:02:34.4]} 21... Kb8 {[%clk 0:02:05.7]} 22.
Nb5 {[%clk 0:02:35.3]} 22... Rh5 {[%clk 0:01:53.7]} 23. Bg4 {[%clk 0:02:23.9]}
23... Nxg4 {[%clk 0:01:54.1]} 24. Qxg4 {[%clk 0:02:25]} 24... Rg5 {[%clk
0:01:42.8]} 25. Qa4 {[%clk 0:02:23.3]} 25... Bxb5 {[%clk 0:01:42.4]} 26. Rxb5
{[%clk 0:02:18.9]} 26... Rg6 {[%clk 0:01:16.7]} 27. Bd2 {[%clk 0:02:16.3]} 27...
Rc6 {[%clk 0:00:59.8]} 28. Rg1 {[%clk 0:02:09.5]} 28... g5 {[%clk 0:00:54.8]}
29. Qb3 {[%clk 0:02:06]} 29... Rc5 {[%clk 0:00:44.5]} 30. a4 {[%clk 0:02:05]}
30... Qf6 {[%clk 0:00:35.4]} 31. Qd1 {[%clk 0:01:43.9]} 31... e4 {[%clk
0:00:33.5]} 32. d4 {[%clk 0:01:41.9]} 32... Rc4 {[%clk 0:00:30]} 33. Bb4 {[%clk
0:01:26.1]} 33... Rdc8 {[%clk 0:00:28.4]} 34. Bd2 {[%clk 0:01:19.3]} 34... Qf5
{[%clk 0:00:26.5]} 35. Qg4 {[%clk 0:01:13.5]} 35... Qf7 {[%clk 0:00:21.1]} 36.
Qxg5 {[%clk 0:01:10.3]} 36... Qf3 {[%clk 0:00:22.2]} 37. Rb1 {[%clk 0:01:04.4]}
37... Rc2 {[%clk 0:00:10.7]} 38. Qg4 {[%clk 0:00:47.5]} 38... Qf7 {[%clk
0:00:11.1]} 39. Qxh4 {[%clk 0:00:36.4]} 39... Qd7 {[%clk 0:00:12.2]} 40. Qf4+
{[%clk 0:00:37.2]} 40... Ka8 {[%clk 0:00:12.9]} 41. h4 {[%clk 0:00:26.2]} 41...
Bb8 {[%clk 0:00:13.7]} 42. Qf6 {[%clk 0:00:22]} 42... Qxa4 {[%clk 0:00:12.2]}
43. Rd1 {[%clk 0:00:19.8]} 43... b5 {[%clk 0:00:12.3]} 44. h5 {[%clk 0:00:19.3]}
44... b4 {[%clk 0:00:13.6]} 45. h6 {[%clk 0:00:20.5]} 45... b3 {[%clk
0:00:14.2]} 46. h7 {[%clk 0:00:22]} 46... b2 {[%clk 0:00:14.5]} 47. h8=Q {[%clk
0:00:23.5]} 47... Rxh8 {[%clk 0:00:15.8]} 48. Qxh8 {[%clk 0:00:24.9]} 48... Rxd2
{[%clk 0:00:15.7]} 49. Kxd2 {[%clk 0:00:24.5]} 1-0

[Event "*** Titled Tuesday 3|2 Blitz"]
[Site "Chess.com"]
[Date "2016.06.07"]
[Round "5"]
[White "iaraldinho"]
[Black "HansCoolNiemann"]
[Result "0-1"]
[WhiteElo "2450"]
[BlackElo "2310"]
[TimeControl "180+2"]
[EndTime "12:02:36 PDT"]
[Termination "HansCoolNiemann won by resignation"]

1. e4 {[%clk 0:03:01.6]} 1... e6 {[%clk 0:02:59.9]} 2. d4 {[%clk 0:03:02.1]}
2... d5 {[%clk 0:03:00.2]} 3. Nc3 {[%clk 0:03:03.3]} 3... Nf6 {[%clk 0:02:59.2]}
4. Bg5 {[%clk 0:03:03.7]} 4... dxe4 {[%clk 0:02:59.4]} 5. Nxe4 {[%clk
0:03:04.3]} 5... Be7 {[%clk 0:03:00.3]} 6. Bxf6 {[%clk 0:03:05.1]} 6... gxf6
{[%clk 0:03:01.3]} 7. Nf3 {[%clk 0:03:05.3]} 7... f5 {[%clk 0:03:02.7]} 8. Ng3
{[%clk 0:02:58.3]} 8... c5 {[%clk 0:03:02.5]} 9. Bd3 {[%clk 0:02:54.1]} 9... Nc6
{[%clk 0:03:00.8]} 10. dxc5 {[%clk 0:02:53.1]} 10... Bxc5 {[%clk 0:03:00.7]} 11.
Qe2 {[%clk 0:02:54.3]} 11... Be7 {[%clk 0:02:52.8]} 12. O-O-O {[%clk 0:02:55.1]}
12... Qa5 {[%clk 0:02:48.1]} 13. Kb1 {[%clk 0:02:55]} 13... Bd7 {[%clk
0:02:45.1]} 14. Rhe1 {[%clk 0:02:55.3]} 14... O-O-O {[%clk 0:02:44.5]} 15. Nxf5
{[%clk 0:02:55.8]} 15... exf5 {[%clk 0:02:43.7]} 16. Bc4 {[%clk 0:02:50.8]}
16... Rhf8 {[%clk 0:02:22.6]} 17. Rd5 {[%clk 0:02:45.8]} 17... Qc7 {[%clk
0:02:19.5]} 18. Nd4 {[%clk 0:02:23.5]} 18... Nxd4 {[%clk 0:01:27.9]} 19. Qxe7
{[%clk 0:02:23.9]} 19... Nc6 {[%clk 0:01:19]} 20. Qf6 {[%clk 0:02:14.5]} 20...
Rfe8 {[%clk 0:01:07.8]} 21. Red1 {[%clk 0:02:14.6]} 21... Be6 {[%clk 0:01:02.4]}
22. Rxd8+ {[%clk 0:02:14.1]} 22... Nxd8 {[%clk 0:01:01.9]} 23. Bd3 {[%clk
0:02:11.5]} 23... Re7 {[%clk 0:00:52.3]} 24. Bxf5 {[%clk 0:02:08.9]} 24... Rd7
{[%clk 0:00:52]} 25. Re1 {[%clk 0:02:01.6]} 25... Qf4 {[%clk 0:00:40.6]} 26.
Qc3+ {[%clk 0:01:59.8]} 26... Qc7 {[%clk 0:00:33.9]} 27. Bxe6 {[%clk 0:01:58.2]}
27... fxe6 {[%clk 0:00:30.4]} 28. Qe3 {[%clk 0:01:53.4]} 28... b6 {[%clk
0:00:28.6]} 29. h4 {[%clk 0:01:52.8]} 29... Qd6 {[%clk 0:00:27.3]} 30. a3 {[%clk
0:01:52.7]} 30... Rf7 {[%clk 0:00:24.7]} 31. f3 {[%clk 0:01:51.8]} 31... Qc5
{[%clk 0:00:24.1]} 32. Qe4 {[%clk 0:01:52.3]} 32... Qc6 {[%clk 0:00:23.2]} 33.
Qxc6+ {[%clk 0:01:52.7]} 33... Nxc6 {[%clk 0:00:23.2]} 34. Rxe6 {[%clk
0:01:54.4]} 34... Kc7 {[%clk 0:00:24.7]} 35. c3 {[%clk 0:01:52.3]} 35... Ne7
{[%clk 0:00:23.5]} 36. h5 {[%clk 0:01:50.3]} 36... Nf5 {[%clk 0:00:23.5]} 37.
Kc2 {[%clk 0:01:48.5]} 37... Nh4 {[%clk 0:00:23.8]} 38. g4 {[%clk 0:01:43.4]}
38... Nxf3 {[%clk 0:00:23.7]} 39. Kb3 {[%clk 0:01:43.5]} 39... Kd7 {[%clk
0:00:16.7]} 40. Re3 {[%clk 0:01:41.7]} 40... Kd6 {[%clk 0:00:16.5]} 41. a4
{[%clk 0:01:40.7]} 41... Nd2+ {[%clk 0:00:15.8]} 42. Kb4 {[%clk 0:01:36.6]}
42... Kc6 {[%clk 0:00:10.6]} 43. Re6+ {[%clk 0:01:35.8]} 43... Kb7 {[%clk
0:00:11.3]} 44. g5 {[%clk 0:01:33.8]} 44... a5+ {[%clk 0:00:10.9]} 45. Ka3
{[%clk 0:01:35.1]} 45... Rg7 {[%clk 0:00:11.1]} 46. Re5 {[%clk 0:01:26.2]} 46...
Nf3 {[%clk 0:00:10.8]} 47. h6 {[%clk 0:01:27.4]} 47... Rxg5 {[%clk 0:00:09.4]}
48. Re7+ {[%clk 0:01:27.9]} 48... Ka6 {[%clk 0:00:09.8]} 49. Rxh7 {[%clk
0:01:29.8]} 49... Rh5 {[%clk 0:00:10.8]} 50. Rh8 {[%clk 0:01:30.6]} 50... Ng5
{[%clk 0:00:11.5]} 51. b4 {[%clk 0:01:28.8]} 51... axb4+ {[%clk 0:00:11]} 52.
cxb4 {[%clk 0:01:29.1]} 52... Rh3+ {[%clk 0:00:12.1]} 53. Kb2 {[%clk 0:01:29.9]}
53... Nf7 {[%clk 0:00:13.3]} 54. b5+ {[%clk 0:01:19.6]} 54... Ka5 {[%clk
0:00:13.5]} 55. Ra8+ {[%clk 0:01:18.3]} 55... Kb4 {[%clk 0:00:14.3]} 56. Ra6
{[%clk 0:01:18.5]} 56... Rxh6 {[%clk 0:00:14.6]} 57. Kc2 {[%clk 0:01:17.5]}
57... Rd6 {[%clk 0:00:14.4]} 58. Ra7 {[%clk 0:01:15.1]} 58... Ne5 {[%clk
0:00:14.5]} 59. Re7 {[%clk 0:01:13.3]} 59... Nc4 {[%clk 0:00:15.2]} 60. Re4
{[%clk 0:01:12.7]} 60... Rd2+ {[%clk 0:00:14.4]} 61. Kc1 {[%clk 0:01:13.8]}
61... Ra2 {[%clk 0:00:15.1]} 0-1

[Event "*** Titled Tuesday 3|2 Blitz"]
[Site "Chess.com"]
[Date "2016.06.07"]
[Round "5"]
[White "Dlugy"]
[Black "Lukianoo"]
[Result "0-1"]
[WhiteElo "2596"]
[BlackElo "2620"]
[TimeControl "180+2"]
[EndTime "12:02:41 PDT"]
[Termination "Lukianoo won by resignation"]

1. d4 {[%clk 0:03:01.9]} 1... Nf6 {[%clk 0:02:56.6]} 2. Bf4 {[%clk 0:03:03.4]}
2... e6 {[%clk 0:02:49.6]} 3. e3 {[%clk 0:03:04.1]} 3... b6 {[%clk 0:02:47.9]}
4. Nf3 {[%clk 0:03:04.7]} 4... Bb7 {[%clk 0:02:46.6]} 5. Bd3 {[%clk 0:03:05.6]}
5... Be7 {[%clk 0:02:44.7]} 6. h3 {[%clk 0:03:06.7]} 6... O-O {[%clk 0:02:40.1]}
7. O-O {[%clk 0:03:07.6]} 7... c5 {[%clk 0:02:37.5]} 8. c3 {[%clk 0:03:08.6]}
8... Nc6 {[%clk 0:02:34.5]} 9. Nbd2 {[%clk 0:03:09.4]} 9... d6 {[%clk
0:02:30.6]} 10. Bh2 {[%clk 0:03:09.7]} 10... h6 {[%clk 0:02:26.2]} 11. Re1
{[%clk 0:03:08.5]} 11... Qc7 {[%clk 0:02:23.2]} 12. a3 {[%clk 0:03:03.5]} 12...
Rac8 {[%clk 0:02:18.9]} 13. e4 {[%clk 0:03:04.3]} 13... cxd4 {[%clk 0:02:11]}
14. cxd4 {[%clk 0:03:05]} 14... Qd7 {[%clk 0:02:10]} 15. Rc1 {[%clk 0:02:58.1]}
15... Rc7 {[%clk 0:02:04.9]} 16. Rc3 {[%clk 0:02:11.8]} 16... Rfc8 {[%clk
0:02:01.7]} 17. Qe2 {[%clk 0:02:06]} 17... Na5 {[%clk 0:01:49.2]} 18. Rxc7
{[%clk 0:02:06.4]} 18... Rxc7 {[%clk 0:01:45.3]} 19. Qe3 {[%clk 0:02:02.4]}
19... Nc6 {[%clk 0:01:36.9]} 20. Bg3 {[%clk 0:01:53]} 20... Nh5 {[%clk
0:01:32.2]} 21. Bh2 {[%clk 0:01:52.1]} 21... Nf6 {[%clk 0:01:27.2]} 22. Qe2
{[%clk 0:01:42.8]} 22... Na5 {[%clk 0:01:16.7]} 23. b4 {[%clk 0:01:38.5]} 23...
Nc6 {[%clk 0:01:14.2]} 24. Bb5 {[%clk 0:01:40]} 24... Rc8 {[%clk 0:01:10.4]} 25.
Bg3 {[%clk 0:01:31.3]} 25... Qd8 {[%clk 0:01:06.8]} 26. Bh4 {[%clk 0:01:31.4]}
26... d5 {[%clk 0:01:03.9]} 27. e5 {[%clk 0:01:30.3]} 27... Ne4 {[%clk
0:01:00.4]} 28. Bxe7 {[%clk 0:01:31.1]} 28... Nxe7 {[%clk 0:00:57.2]} 29. Bd3
{[%clk 0:01:31.4]} 29... Nc3 {[%clk 0:00:54.7]} 30. Qe3 {[%clk 0:01:31.3]} 30...
Qd7 {[%clk 0:00:51.1]} 31. Nb1 {[%clk 0:01:14.8]} 31... Ne4 {[%clk 0:00:47.6]}
32. Nfd2 {[%clk 0:01:14.2]} 32... Nf5 {[%clk 0:00:45]} 33. Qf4 {[%clk
0:01:15.5]} 33... Nxd4 {[%clk 0:00:42]} 34. Nxe4 {[%clk 0:01:16.4]} 34... dxe4
{[%clk 0:00:40.7]} 35. Bxe4 {[%clk 0:01:17.7]} 35... Bxe4 {[%clk 0:00:38.5]} 36.
Qxe4 {[%clk 0:01:19]} 36... Nf5 {[%clk 0:00:34.9]} 37. Qe2 {[%clk 0:01:09.6]}
37... Qd5 {[%clk 0:00:32.2]} 38. Rd1 {[%clk 0:01:00.8]} 38... Qb3 {[%clk
0:00:29.8]} 39. Kh2 {[%clk 0:00:55.2]} 39... a5 {[%clk 0:00:27.7]} 40. bxa5
{[%clk 0:00:55.4]} 40... bxa5 {[%clk 0:00:29.6]} 41. Rd7 {[%clk 0:00:53.9]}
41... Qxb1 {[%clk 0:00:26.3]} 42. Qa6 {[%clk 0:00:53.4]} 42... Rc1 {[%clk
0:00:21.3]} 43. Qa8+ {[%clk 0:00:51]} 43... Kh7 {[%clk 0:00:20.7]} 44. g4 {[%clk
0:00:52.9]} 44... Qb2 {[%clk 0:00:14.3]} 45. Kg2 {[%clk 0:00:45.6]} 45... Nh4+
{[%clk 0:00:12.1]} 46. Kg3 {[%clk 0:00:46.7]} 46... Rc3+ {[%clk 0:00:09.4]} 47.
f3 {[%clk 0:00:35]} 47... Rxf3+ {[%clk 0:00:09.4]} 48. Qxf3 {[%clk 0:00:36.7]}
48... Nxf3 {[%clk 0:00:10.7]} 49. Rxf7 {[%clk 0:00:37.6]} 49... Nxe5 {[%clk
0:00:09.6]} 50. Rf2 {[%clk 0:00:38.5]} 50... Qxa3+ {[%clk 0:00:10.2]} 51. Kh4
{[%clk 0:00:39.4]} 51... Nf3+ {[%clk 0:00:10.4]} 52. Kg3 {[%clk 0:00:40.1]}
52... Ng5+ {[%clk 0:00:10.7]} 53. Kg2 {[%clk 0:00:40.7]} 53... Qxh3+ {[%clk
0:00:11.1]} 54. Kg1 {[%clk 0:00:42.5]} 54... Nf3+ {[%clk 0:00:12.2]} 55. Rxf3
{[%clk 0:00:43.7]} 55... Qxf3 {[%clk 0:00:14.1]} 56. g5 {[%clk 0:00:45.6]} 56...
Qg4+ {[%clk 0:00:14.4]} 57. Kh2 {[%clk 0:00:46.7]} 57... hxg5 {[%clk 0:00:14.1]}
58. Kh1 {[%clk 0:00:48]} 58... Kg6 {[%clk 0:00:15.2]} 59. Kh2 {[%clk 0:00:49.9]}
59... Kf5 {[%clk 0:00:16.5]} 60. Kh1 {[%clk 0:00:51.8]} 0-1

[Event "*** Titled Tuesday 3|2 Blitz"]
[Site "Chess.com"]
[Date "2016.06.07"]
[Round "5"]
[White "sandropozo"]
[Black "PowerThinking2650"]
[Result "1/2-1/2"]
[WhiteElo "2431"]
[BlackElo "2219"]
[TimeControl "180+2"]
[EndTime "12:03:03 PDT"]
[Termination "Game drawn by repetition"]

1. d4 {[%clk 0:03:01.3]} 1... Nf6 {[%clk 0:03:00.2]} 2. Nf3 {[%clk 0:03:01.6]}
2... g6 {[%clk 0:03:01.2]} 3. c4 {[%clk 0:03:00.8]} 3... Bg7 {[%clk 0:03:02]} 4.
g3 {[%clk 0:03:02.4]} 4... O-O {[%clk 0:03:02.6]} 5. Bg2 {[%clk 0:03:03.3]} 5...
d6 {[%clk 0:03:03.9]} 6. O-O {[%clk 0:03:04.1]} 6... Nbd7 {[%clk 0:03:05.4]} 7.
Nc3 {[%clk 0:03:05]} 7... e5 {[%clk 0:03:06.1]} 8. e4 {[%clk 0:03:06.6]} 8...
exd4 {[%clk 0:03:05]} 9. Nxd4 {[%clk 0:03:06.2]} 9... Re8 {[%clk 0:03:06]} 10.
Re1 {[%clk 0:03:02.8]} 10... a5 {[%clk 0:03:06]} 11. h3 {[%clk 0:02:52.7]} 11...
Nc5 {[%clk 0:03:06.8]} 12. Bf4 {[%clk 0:02:52.1]} 12... Nfd7 {[%clk 0:02:51.9]}
13. Be3 {[%clk 0:02:36.9]} 13... Ne5 {[%clk 0:02:48.4]} 14. b3 {[%clk
0:02:25.5]} 14... a4 {[%clk 0:02:49.2]} 15. Qc2 {[%clk 0:02:13.4]} 15... Ned3
{[%clk 0:02:39.7]} 16. Red1 {[%clk 0:02:08.8]} 16... Nb4 {[%clk 0:02:39.7]} 17.
Qb2 {[%clk 0:01:54]} 17... Ncd3 {[%clk 0:01:51.3]} 18. Qd2 {[%clk 0:01:47.5]}
18... c5 {[%clk 0:01:46.4]} 19. Ndb5 {[%clk 0:01:44.7]} 19... axb3 {[%clk
0:01:33.4]} 20. axb3 {[%clk 0:01:45.9]} 20... Rxa1 {[%clk 0:01:33.1]} 21. Rxa1
{[%clk 0:01:47.3]} 21... Bd7 {[%clk 0:01:34.2]} 22. Rd1 {[%clk 0:01:20.6]} 22...
Bc6 {[%clk 0:01:24.8]} 23. Nd5 {[%clk 0:01:20.6]} 23... Nxd5 {[%clk 0:01:06.5]}
24. exd5 {[%clk 0:00:59.9]} 24... Bxb5 {[%clk 0:01:02.9]} 25. Qxd3 {[%clk
0:01:01.3]} 25... Bd7 {[%clk 0:01:00.5]} 26. Bf4 {[%clk 0:01:01.6]} 26... Bf5
{[%clk 0:00:58.3]} 27. Qd2 {[%clk 0:00:59.7]} 27... h5 {[%clk 0:00:54.4]} 28.
Re1 {[%clk 0:00:56.9]} 28... Rxe1+ {[%clk 0:00:52.3]} 29. Qxe1 {[%clk
0:00:58.4]} 29... Bd4 {[%clk 0:00:48.7]} 30. Kh2 {[%clk 0:00:55.6]} 30... Kg7
{[%clk 0:00:45.9]} 31. Qd2 {[%clk 0:00:54.9]} 31... Qe7 {[%clk 0:00:41.3]} 32.
Bh6+ {[%clk 0:00:55.3]} 32... Kg8 {[%clk 0:00:41]} 33. Qa2 {[%clk 0:00:53.8]}
33... Kh7 {[%clk 0:00:41.4]} 34. Bf4 {[%clk 0:00:52.8]} 34... g5 {[%clk
0:00:40.7]} 35. Bc1 {[%clk 0:00:47.1]} 35... Qe1 {[%clk 0:00:27.1]} 36. Qd2
{[%clk 0:00:46]} 36... Qxd2 {[%clk 0:00:20.1]} 37. Bxd2 {[%clk 0:00:47]} 37...
Kg6 {[%clk 0:00:20.2]} 38. f4 {[%clk 0:00:46]} 38... g4 {[%clk 0:00:18.3]} 39.
hxg4 {[%clk 0:00:45.6]} 39... hxg4 {[%clk 0:00:18.9]} 40. Bf1 {[%clk 0:00:42.6]}
40... Bc2 {[%clk 0:00:18.1]} 41. b4 {[%clk 0:00:43.8]} 41... Kf5 {[%clk
0:00:18.3]} 42. bxc5 {[%clk 0:00:42.5]} 42... Bxc5 {[%clk 0:00:15.2]} 43. Be2
{[%clk 0:00:42.7]} 43... b6 {[%clk 0:00:14.8]} 44. Bc3 {[%clk 0:00:43.8]} 44...
Be4 {[%clk 0:00:15.1]} 45. Bb2 {[%clk 0:00:42.2]} 45... Bb4 {[%clk 0:00:11.7]}
46. Bd4 {[%clk 0:00:42.7]} 46... Bc5 {[%clk 0:00:12.7]} 47. Bc3 {[%clk 0:00:44]}
47... Bc2 {[%clk 0:00:12]} 48. Kg2 {[%clk 0:00:43.7]} 48... Be4+ {[%clk
0:00:12.7]} 49. Kf1 {[%clk 0:00:44.9]} 49... Bc2 {[%clk 0:00:10.9]} 50. Ke1
{[%clk 0:00:45.9]} 50... Be4 {[%clk 0:00:11.8]} 51. Kf1 {[%clk 0:00:46.7]} 51...
Bc2 {[%clk 0:00:12.5]} 52. Bb2 {[%clk 0:00:47]} 52... Be4 {[%clk 0:00:13.2]} 53.
Bc3 {[%clk 0:00:46.3]} 53... Bc2 {[%clk 0:00:14]} 54. Kg2 {[%clk 0:00:46]} 54...
Be4+ {[%clk 0:00:13.7]} 55. Kf1 {[%clk 0:00:47.2]} 55... Bc2 {[%clk 0:00:13.9]}
56. Ke1 {[%clk 0:00:47]} 56... Be4 {[%clk 0:00:14.1]} 57. Kf1 {[%clk 0:00:22.6]}
1/2-1/2

[Event "*** Titled Tuesday 3|2 Blitz"]
[Site "Chess.com"]
[Date "2016.06.07"]
[Round "5"]
[White "Mvpag"]
[Black "Ksenia_Legenko"]
[Result "0-1"]
[WhiteElo "2113"]
[BlackElo "2021"]
[TimeControl "180+2"]
[EndTime "12:03:05 PDT"]
[Termination "Ksenia_Legenko won by resignation"]

1. d4 {[%clk 0:03:01.9]} 1... d5 {[%clk 0:02:59.9]} 2. Nf3 {[%clk 0:03:03.2]}
2... Nf6 {[%clk 0:03:00.5]} 3. e3 {[%clk 0:03:04.5]} 3... e6 {[%clk 0:03:01.1]}
4. Bd3 {[%clk 0:03:06]} 4... c5 {[%clk 0:03:01.9]} 5. b3 {[%clk 0:03:06.8]} 5...
Nc6 {[%clk 0:03:02.8]} 6. Bb2 {[%clk 0:03:07.6]} 6... Bd6 {[%clk 0:03:03.9]} 7.
O-O {[%clk 0:03:07.9]} 7... O-O {[%clk 0:03:05.1]} 8. Nbd2 {[%clk 0:03:08.3]}
8... b6 {[%clk 0:03:06]} 9. a3 {[%clk 0:03:09.6]} 9... Bb7 {[%clk 0:03:06.8]}
10. Ne5 {[%clk 0:03:09.6]} 10... Rc8 {[%clk 0:03:06.6]} 11. f4 {[%clk
0:03:09.3]} 11... Ne7 {[%clk 0:03:07.4]} 12. g4 {[%clk 0:03:02.7]} 12... Ne4
{[%clk 0:03:06.5]} 13. Bxe4 {[%clk 0:02:54]} 13... dxe4 {[%clk 0:03:07.2]} 14.
Ndc4 {[%clk 0:02:15.6]} 14... b5 {[%clk 0:02:46.8]} 15. Nxd6 {[%clk 0:02:06]}
15... Qxd6 {[%clk 0:02:47.3]} 16. dxc5 {[%clk 0:02:05.1]} 16... Qxc5 {[%clk
0:02:48.3]} 17. Qd4 {[%clk 0:01:41.1]} 17... Qxd4 {[%clk 0:02:36.2]} 18. Bxd4
{[%clk 0:01:40]} 18... Rxc2 {[%clk 0:02:31.5]} 19. Bxa7 {[%clk 0:01:38.8]} 19...
f6 {[%clk 0:02:26.6]} 20. Nd7 {[%clk 0:01:31]} 20... Rd8 {[%clk 0:02:27.5]} 21.
Rad1 {[%clk 0:01:25.8]} 21... Nd5 {[%clk 0:02:18.3]} 22. Nc5 {[%clk 0:01:15.3]}
22... Ra8 {[%clk 0:01:59]} 23. Bb6 {[%clk 0:00:22.4]} 23... Bc8 {[%clk
0:01:42.4]} 24. Nxe4 {[%clk 0:00:17.9]} 24... Nxb6 {[%clk 0:01:35.6]} 25. Rd8+
{[%clk 0:00:14.4]} 25... Kf7 {[%clk 0:01:36.8]} 26. Rfd1 {[%clk 0:00:09.3]}
26... Nd5 {[%clk 0:01:35.7]} 27. Rxc8 {[%clk 0:00:06.7]} 27... Raxc8 {[%clk
0:01:35.3]} 28. Nd6+ {[%clk 0:00:07.9]} 28... Ke7 {[%clk 0:01:36.3]} 29. Nxc8+
{[%clk 0:00:08.8]} 29... Rxc8 {[%clk 0:01:37.2]} 30. a4 {[%clk 0:00:10]} 30...
bxa4 {[%clk 0:01:36.9]} 31. bxa4 {[%clk 0:00:09.9]} 31... Nxe3 {[%clk
0:01:37.8]} 32. Ra1 {[%clk 0:00:10.1]} 32... Ra8 {[%clk 0:01:37.5]} 33. a5
{[%clk 0:00:11.1]} 33... Nc4 {[%clk 0:01:36.3]} 34. a6 {[%clk 0:00:11.9]} 34...
Ra7 {[%clk 0:01:37.2]} 35. Kf2 {[%clk 0:00:13.4]} 35... Nb6 {[%clk 0:01:30.4]}
36. Ke3 {[%clk 0:00:12.9]} 36... Nd5+ {[%clk 0:01:31.1]} 37. Ke4 {[%clk
0:00:13.5]} 37... Nc7 {[%clk 0:01:30.9]} 38. h4 {[%clk 0:00:10]} 38... Rxa6
{[%clk 0:01:31.4]} 39. Rc1 {[%clk 0:00:10.4]} 39... Ra4+ {[%clk 0:01:31]} 40.
Kf3 {[%clk 0:00:11.3]} 40... Nd5 {[%clk 0:01:31.5]} 41. f5 {[%clk 0:00:10.1]}
41... exf5 {[%clk 0:01:30]} 42. gxf5 {[%clk 0:00:10.6]} 42... Rxh4 {[%clk
0:01:30.5]} 43. Re1+ {[%clk 0:00:11.2]} 43... Kf7 {[%clk 0:01:30.6]} 44. Rd1
{[%clk 0:00:12]} 44... Rf4+ {[%clk 0:01:29.2]} 45. Kg3 {[%clk 0:00:08.5]} 45...
Rxf5 {[%clk 0:01:29.5]} 46. Kg4 {[%clk 0:00:09.6]} 46... Re5 {[%clk 0:01:29.4]}
47. Ra1 {[%clk 0:00:09.5]} 47... h5+ {[%clk 0:01:28.7]} 48. Kf3 {[%clk
0:00:09.9]} 48... g5 {[%clk 0:01:28.8]} 49. Ra7+ {[%clk 0:00:06.3]} 49... Kg6
{[%clk 0:01:29.6]} 50. Kg3 {[%clk 0:00:07.4]} 50... Re3+ {[%clk 0:01:30]} 51.
Kf2 {[%clk 0:00:08.2]} 51... Rb3 {[%clk 0:01:29.6]} 52. Rd7 {[%clk 0:00:08.2]}
52... Nf4 {[%clk 0:01:29.8]} 53. Kf1 {[%clk 0:00:07.6]} 53... Rb2 {[%clk
0:01:30.1]} 54. Kg1 {[%clk 0:00:06.2]} 54... h4 {[%clk 0:01:30.7]} 55. Kh1
{[%clk 0:00:06.5]} 55... g4 {[%clk 0:01:31.1]} 56. Kg1 {[%clk 0:00:07.4]} 56...
h3 {[%clk 0:01:32]} 57. Rd4 {[%clk 0:00:08.3]} 57... Kg5 {[%clk 0:01:32.5]} 58.
Rc4 {[%clk 0:00:08.5]} 58... g3 {[%clk 0:01:33.1]} 59. Rc5+ {[%clk 0:00:05.3]}
59... f5 {[%clk 0:01:33.6]} 60. Rc1 {[%clk 0:00:06.5]} 60... Ne2+ {[%clk
0:01:34.4]} 61. Kh1 {[%clk 0:00:07.5]} 61... Nxc1 {[%clk 0:01:35.2]} 62. Kg1
{[%clk 0:00:06.9]} 62... Nb3 {[%clk 0:01:35.3]} 0-1